bitfinex/quotes_BTCUSD_20250601
["timestamp","ask_amount","ask_price","bid_price","bid_amount"]
[1748786289742,0.29280194,104290.0,104280.0,4.53628621]
[1748786289994,0.29280194,104290.0,104280.0,4.53628547]
[1748786290783,0.29280194,104290.0,104280.0,4.53627774]
[1748786290999,0.30780194,104290.0,104280.0,4.53627776]
[1748786291196,0.30780194,104290.0,104280.0,4.52063589]
[1748786291416,0.30780194,104290.0,104280.0,4.53627773]
[1748786291999,0.30780194,104290.0,104280.0,4.53627618]
[1748786292178,0.30780194,104290.0,104280.0,4.53627378]
[1748786292387,0.29280194,104290.0,104280.0,4.55157191]
[1748786292621,0.21104262,104290.0,104280.0,4.53593589]
[1748786292838,0.50432262,104290.0,104280.0,4.54487078]
[1748786293053,0.50432262,104290.0,104280.0,4.54486949]
[1748786293258,0.50432262,104290.0,104280.0,4.53593589]
[1748786293621,0.50432262,104290.0,104280.0,4.54486912]
[1748786293835,0.50432262,104290.0,104280.0,4.54486852]
[1748786294059,0.50432262,104290.0,104280.0,4.54486851]
[1748786294387,0.50432262,104290.0,104280.0,4.54486855]
[1748786294593,0.58901084,104290.0,104280.0,4.53593589]
[1748786295162,0.58901084,104290.0,104280.0,4.52063589]
[1748786295752,0.58901084,104290.0,104280.0,4.52956899]
[1748786295955,0.60451084,104290.0,104280.0,4.52956901]
[1748786296439,0.50432262,104290.0,104280.0,4.53593589]
[1748786296587,0.50432262,104290.0,104280.0,4.54487004]
[1748786296805,0.50432262,104290.0,104280.0,4.53593589]
[1748786297424,0.50432262,104290.0,104280.0,4.54263813]
[1748786297626,0.21104262,104290.0,104280.0,4.54263813]
[1748786297833,0.50432262,104290.0,104280.0,4.54263813]
[1748786298578,0.5140179,104290.0,104280.0,4.54263813]
[1748786299856,0.5140179,104290.0,104280.0,4.54934395]
[1748786300056,0.5140179,104290.0,104280.0,4.54934393]
[1748786300263,0.5140179,104290.0,104280.0,4.54263813]
[1748786300520,0.5140179,104290.0,104280.0,4.55157912]
[1748786300730,0.5140179,104290.0,104280.0,4.54263813]
[1748786300960,0.5140179,104290.0,104280.0,4.54935226]
[1748786301182,0.5140179,104290.0,104280.0,4.55830453]
[1748786301431,0.5140179,104290.0,104280.0,4.54263813]
[1748786301648,0.5140179,104290.0,104280.0,4.54935231]
[1748786301868,0.5140179,104290.0,104280.0,4.55830455]
[1748786302100,0.5140179,104290.0,104280.0,4.55830541]
[1748786302557,0.5140179,104290.0,104280.0,4.55830605]
[1748786302982,0.5140179,104290.0,104280.0,4.55830999]
[1748786303190,0.5140179,104290.0,104280.0,4.55831073]
[1748786303412,0.5140179,104290.0,104280.0,4.55831223]
[1748786303841,0.5140179,104290.0,104280.0,4.55159483]
[1748786304091,0.5140179,104290.0,104280.0,4.55831305]
[1748786304311,0.5140179,104290.0,104280.0,4.54263813]
[1748786304540,0.5140179,104290.0,104280.0,4.55831398]
[1748786305481,0.5140179,104290.0,104280.0,4.55159576]
[1748786305626,0.5140179,104290.0,104280.0,4.55831528]
[1748786306482,0.5140179,104290.0,104280.0,4.5583165]
[1748786306643,0.5140179,104290.0,104280.0,4.55831659]
[1748786306849,0.5140179,104290.0,104280.0,4.55831769]
[1748786307066,0.5140179,104290.0,104280.0,4.55833619]
[1748786307265,0.5140179,104290.0,104280.0,4.55833651]
[1748786307475,0.5140179,104290.0,104280.0,4.55526831]
[1748786307899,0.5140179,104290.0,104280.0,4.55526847]
[1748786308070,0.5140179,104290.0,104280.0,4.55526869]
[1748786309179,0.5140179,104290.0,104280.0,4.555269]
[1748786309746,0.5140179,104290.0,104280.0,4.55526912]
[1748786310028,0.2207379,104290.0,104280.0,4.54629834]
[1748786310202,0.5139379,104290.0,104280.0,4.55526955]
[1748786310368,0.2207379,104290.0,104280.0,4.55526955]
[1748786310569,0.5139379,104290.0,104280.0,4.54854114]
[1748786310833,0.5139379,104290.0,104280.0,4.60526991]
[1748786311061,0.5139379,104290.0,104280.0,4.55526991]
[1748786311386,0.5139379,104290.0,104280.0,4.53956993]
[1748786311643,0.5139379,104290.0,104280.0,4.54854152]
[1748786311839,0.5139379,104290.0,104280.0,4.55527019]
[1748786312204,0.6038579,104290.0,104280.0,4.55527035]
[1748786312403,0.6038579,104290.0,104280.0,4.55527183]
[1748786312639,0.6038579,104290.0,104280.0,4.55527215]
[1748786312868,0.6038579,104290.0,104280.0,4.55527271]
[1748786313076,0.6038579,104290.0,104280.0,4.55527277]
[1748786313254,0.6038579,104290.0,104280.0,4.55527308]
[1748786313481,0.6038579,104290.0,104280.0,4.53956993]
[1748786314526,0.6038579,104290.0,104280.0,4.55527584]
[1748786314735,0.6038579,104290.0,104280.0,4.54854473]
[1748786314935,0.68949965,104290.0,104280.0,4.55527584]
[1748786315170,0.68949965,104290.0,104280.0,4.53956993]
[1748786315368,0.68949965,104290.0,104280.0,4.52426993]
[1748786315504,0.68949965,104290.0,104280.0,4.53324479]
[1748786315712,0.68949965,104290.0,104280.0,4.52426993]
[1748786316309,0.68949965,104290.0,104280.0,4.539976]
[1748786316523,0.68949965,104290.0,104280.0,4.53997601]
[1748786316725,0.70559965,104290.0,104280.0,4.53997601]
[1748786317184,0.70559965,104290.0,104280.0,4.53998136]
[1748786317383,0.6038579,104290.0,104280.0,4.54610336]
[1748786317720,0.6038579,104290.0,104280.0,4.53936993]
[1748786317899,0.6038579,104290.0,104280.0,4.54610362]
[1748786318102,0.6038579,104290.0,104280.0,4.53936993]
[1748786318768,0.68955965,104290.0,104280.0,4.53936993]
[1748786318949,0.68955965,104290.0,104280.0,4.53324944]
[1748786319121,0.68955965,104290.0,104280.0,4.53324956]
[1748786319322,0.68955965,104290.0,104280.0,4.53100465]
[1748786319530,0.68955965,104290.0,104280.0,4.53100471]
[1748786319707,0.68955965,104290.0,104280.0,4.53998442]
[1748786319914,0.68955965,104290.0,104280.0,4.52426993]
[1748786320111,0.68955965,104290.0,104280.0,4.5332501]
[1748786320296,0.68955965,104290.0,104280.0,4.53998523]
[1748786320495,0.68955965,104290.0,104280.0,4.5399853]
[1748786320925,0.6038579,104290.0,104280.0,4.53936993]
[1748786321129,0.6038579,104290.0,104280.0,4.55508537]
[1748786321547,0.6038579,104290.0,104280.0,4.5550854]
[1748786321722,0.6038579,104290.0,104280.0,4.55508566]
[1748786322768,0.6038579,104290.0,104280.0,4.55326874]
[1748786322983,0.6038579,104290.0,104280.0,4.56000766]
[1748786323354,0.6038579,104290.0,104280.0,4.54428769]
[1748786323618,0.6038579,104290.0,104280.0,4.56000777]
[1748786323755,0.6038579,104290.0,104280.0,4.56000782]
[1748786323957,0.6038579,104290.0,104280.0,4.5600083]
[1748786324174,0.6038579,104290.0,104280.0,4.5532709]
[1748786324459,0.6038579,104290.0,104280.0,4.56000841]
[1748786324632,0.6038579,104290.0,104280.0,4.56000982]
[1748786324853,0.6038579,104290.0,104280.0,4.56001193]
[1748786325485,0.70475965,104290.0,104280.0,4.54491189]
[1748786325734,0.70475965,104290.0,104280.0,4.54491271]
[1748786326134,0.70475965,104290.0,104280.0,4.54491142]
[1748786326324,0.70475965,104290.0,104280.0,4.52918769]
[1748786326545,0.68955965,104290.0,104280.0,4.52918769]
[1748786326961,0.6038579,104290.0,104280.0,4.54491158]
[1748786327172,0.6038579,104290.0,104280.0,4.59491156]
[1748786327341,0.6038579,104290.0,104280.0,4.53817277]
[1748786328198,0.6038579,104290.0,104280.0,4.55367277]
[1748786328398,0.6038579,104290.0,104280.0,4.56265777]
[1748786328614,0.6038579,104290.0,104280.0,4.55367277]
[1748786329520,0.6038579,104290.0,104280.0,4.56939691]
[1748786329870,0.6038579,104290.0,104280.0,4.56939693]
[1748786330231,0.6038579,104290.0,104280.0,4.56939596]
[1748786330459,0.6038579,104290.0,104280.0,4.56265742]
[1748786330660,0.6038579,104290.0,104280.0,4.55367277]
[1748786330872,0.6038579,104290.0,104280.0,4.56041127]
[1748786331292,0.6038579,104290.0,104280.0,4.55367277]
[1748786331542,0.6038579,104290.0,104280.0,4.56939594]
[1748786332074,0.6038579,104290.0,104280.0,4.56939553]
[1748786332262,0.68936965,104290.0,104280.0,4.56447748]
[1748786332482,0.68936965,104290.0,104280.0,4.56447753]
[1748786332679,0.68936965,104290.0,104280.0,4.55773925]
[1748786332905,0.6038579,104290.0,104280.0,4.55549319]
[1748786333105,0.6038579,104290.0,104280.0,4.54875501]
[1748786333775,0.6038579,104290.0,104280.0,4.55549313]
[1748786334073,0.6038579,104290.0,104280.0,4.5644769]
[1748786335107,0.6038579,104290.0,104280.0,4.56447669]
[1748786335519,0.6038579,104290.0,104280.0,4.56447645]
[1748786336583,0.6038579,104290.0,104280.0,4.55549254]
[1748786336990,0.6038579,104290.0,104280.0,4.54875501]
[1748786337374,0.6038579,104290.0,104280.0,4.56447592]
[1748786338074,0.6038579,104290.0,104280.0,4.56447581]
[1748786338299,0.6037379,104290.0,104280.0,4.56447564]
[1748786338497,0.6037379,104290.0,104280.0,4.55549242]
[1748786338715,0.6037379,104290.0,104280.0,4.54875501]
[1748786338947,0.6037379,104290.0,104280.0,4.55773815]
[1748786339214,0.6037379,104290.0,104280.0,4.56447555]
[1748786339435,0.6037379,104290.0,104280.0,4.56447556]
[1748786339635,0.6037379,104290.0,104280.0,4.55773821]
[1748786339844,0.6037379,104290.0,104280.0,4.56447567]
[1748786340047,0.6037379,104290.0,104280.0,4.56447564]
[1748786340276,0.6037379,104290.0,104280.0,4.56447283]
[1748786340490,0.6037379,104290.0,104280.0,4.54875501]
[1748786340709,0.6037379,104290.0,104280.0,4.56447274]
[1748786340920,0.6037379,104290.0,104280.0,4.54875501]
[1748786341354,0.6037379,104290.0,104280.0,4.55305117]
[1748786341560,0.6037379,104290.0,104280.0,4.54631501]
[1748786341811,0.6037379,104290.0,104280.0,4.56203272]
[1748786342012,0.6037379,104290.0,104280.0,4.55305122]
[1748786342191,0.6037379,104290.0,104280.0,4.54631501]
[1748786342805,0.6037379,104290.0,104280.0,4.55529667]
[1748786343124,0.6037379,104290.0,104280.0,4.54631501]
[1748786343298,0.6037379,104290.0,104280.0,4.55529667]
[1748786343622,0.6037379,104290.0,104280.0,4.54631501]
[1748786344433,0.6036179,104290.0,104280.0,4.54631501]
[1748786345824,0.6036179,104290.0,104280.0,4.55305115]
[1748786346026,0.6036179,104290.0,104280.0,4.55305112]
[1748786346224,0.6036179,104290.0,104280.0,4.54631501]
[1748786346646,0.6036179,104290.0,104280.0,4.55305112]
[1748786346866,0.6036179,104290.0,104280.0,4.5530512]
[1748786347422,0.6036179,104290.0,104280.0,4.54631501]
[1748786348162,0.6036179,104290.0,104280.0,4.55305121]
[1748786348545,0.6036179,104290.0,104280.0,4.54631501]
[1748786350142,0.6036179,104290.0,104280.0,4.55529663]
[1748786350359,0.6036179,104290.0,104280.0,4.55529669]
[1748786350586,0.6036179,104290.0,104280.0,4.54631501]
[1748786351026,0.68910565,104290.0,104280.0,4.53979681]
[1748786351242,0.70460565,104290.0,104280.0,4.53755136]
[1748786351459,0.70460565,104290.0,104280.0,4.53081501]
[1748786351675,0.2362379,104290.0,104280.0,4.53081501]
[1748786351886,0.6190779,104290.0,104280.0,4.53081501]
[1748786352301,0.6190779,104290.0,104280.0,4.54653352]
[1748786352534,0.6190779,104290.0,104280.0,4.53755151]
[1748786352744,0.6190779,104290.0,104280.0,4.54428801]
[1748786352973,0.6190779,104290.0,104280.0,4.53755151]
[1748786353202,0.6190779,104290.0,104280.0,4.54428802]
[1748786353413,0.6190779,104290.0,104280.0,4.53755151]
[1748786354069,0.6190779,104290.0,104280.0,4.55327106]
[1748786354275,0.6190779,104290.0,104280.0,4.54653411]
[1748786354486,0.6190779,104290.0,104280.0,4.53755151]
[1748786354908,0.6190779,104290.0,104280.0,4.55327263]
[1748786355086,0.6190779,104290.0,104280.0,4.55327472]
[1748786355512,0.6190779,104290.0,104280.0,4.54429003]
[1748786355753,0.6190779,104290.0,104280.0,4.55327472]
[1748786355886,0.6190779,104290.0,104280.0,4.53755151]
[1748786356103,0.6190779,104290.0,104280.0,4.54653645]
[1748786356325,0.70171275,104290.0,104280.0,4.5532751]
[1748786356541,0.70171275,104290.0,104280.0,4.55327515]
[1748786356748,0.70171275,104290.0,104280.0,4.55327522]
[1748786357420,0.71681275,104290.0,104280.0,4.54129008]
[1748786357689,0.71681275,104290.0,104280.0,4.53455151]
[1748786357888,0.71681275,104290.0,104280.0,4.54329009]
[1748786358094,0.70711747,104290.0,104280.0,4.55227492]
[1748786358310,0.60938262,104290.0,104280.0,4.54927492]
[1748786358736,0.59388262,104290.0,104280.0,4.54927492]
[1748786358862,0.59388262,104290.0,104280.0,4.56467481]
[1748786359067,0.59388262,104290.0,104280.0,4.55568999]
[1748786359284,0.59388262,104290.0,104280.0,4.56467463]
[1748786359475,0.59388262,104290.0,104280.0,4.56467464]
[1748786359671,0.59388262,104290.0,104280.0,4.55095151]
[1748786359910,0.59388262,104290.0,104280.0,4.55993632]
[1748786360071,0.59388262,104290.0,104280.0,4.56667503]
[1748786360304,0.59388262,104290.0,104280.0,4.56667501]
[1748786360707,0.21104262,104290.0,104280.0,4.56667501]
[1748786360908,0.59384262,104290.0,104280.0,4.58227501]
[1748786361272,0.21104262,104290.0,104280.0,5.36086066]
[1748786361508,0.21104262,104290.0,104280.0,5.16906408]
[1748786361710,0.21104262,104290.0,104280.0,4.67812298]
[1748786361865,0.21104262,104290.0,104280.0,4.67138668]
[1748786362105,0.21104262,104290.0,104280.0,4.66240581]
[1748786362512,0.21104262,104290.0,104280.0,4.66040581]
[1748786362906,0.21104262,104290.0,104280.0,4.72014147]
[1748786363130,0.21104262,104290.0,104280.0,4.67912235]
[1748786363534,0.21104262,104290.0,104280.0,4.66340581]
[1748786363862,0.21104262,104290.0,104280.0,4.67712229]
[1748786364195,0.21104262,104290.0,104280.0,4.73012226]
[1748786364420,0.21104262,104290.0,104280.0,4.68012226]
[1748786365064,0.21104262,104290.0,104280.0,4.73011082]
[1748786365272,0.21104262,104290.0,104280.0,4.73010743]
[1748786365480,0.50396262,104290.0,104280.0,4.68009627]
[1748786365635,0.50396262,104290.0,104280.0,4.72113018]
[1748786365840,0.50396262,104290.0,104280.0,4.67112967]
[1748786366038,0.50396262,104290.0,104280.0,4.7300948]
[1748786366243,0.50396262,104290.0,104280.0,4.66440581]
[1748786366457,0.50396262,104290.0,104280.0,4.68009477]
[1748786366646,0.50396262,104290.0,104280.0,4.68009475]
[1748786367429,0.50396262,104290.0,104280.0,4.6733692]
[1748786367636,0.50396262,104290.0,104280.0,4.68009064]
[1748786368216,0.50396262,104290.0,104280.0,4.68009065]
[1748786368388,0.50396262,104290.0,104280.0,4.68499962]
[1748786368574,0.50396262,104290.0,104280.0,4.68499902]
[1748786368995,0.50396262,104290.0,104280.0,4.68499821]
[1748786369225,0.50396262,104290.0,104280.0,4.73499752]
[1748786369378,0.50396262,104290.0,104280.0,4.68499698]
[1748786370090,0.50396262,104290.0,104280.0,4.67603572]
[1748786370310,0.50396262,104290.0,104280.0,4.67827604]
[1748786370541,0.50396262,104290.0,104280.0,4.68499698]
[1748786370977,0.50396262,104290.0,104280.0,4.68499709]
[1748786371191,0.50396262,104290.0,104280.0,4.68499714]
[1748786371400,0.50396262,104290.0,104280.0,4.68499715]
[1748786371864,0.50396262,104290.0,104280.0,4.67827608]
[1748786372073,0.50396262,104290.0,104280.0,4.68499707]
[1748786372251,0.50396262,104290.0,104280.0,4.68499709]
[1748786373330,0.50396262,104290.0,104280.0,4.68499736]
[1748786373543,0.50396262,104290.0,104280.0,4.67827637]
[1748786373781,0.50396262,104290.0,104280.0,4.68499756]
[1748786374160,0.50396262,104290.0,104280.0,4.68499758]
[1748786374597,0.50388262,104290.0,104280.0,4.68499758]
[1748786374803,0.50388262,104290.0,104280.0,4.73499756]
[1748786375015,0.50388262,104290.0,104280.0,4.68499756]
[1748786375229,0.50388262,104290.0,104280.0,4.67603622]
[1748786375447,0.21104262,104290.0,104280.0,4.72603622]
[1748786375672,0.50388262,104290.0,104280.0,4.66931478]
[1748786376150,0.50388262,104290.0,104280.0,4.6782767]
[1748786376367,0.50388262,104290.0,104280.0,4.66931478]
[1748786376591,0.50388262,104290.0,104280.0,4.68499878]
[1748786376797,0.50388262,104290.0,104280.0,4.66931478]
[1748786377009,0.50388262,104290.0,104280.0,4.67827711]
[1748786377214,0.50388262,104290.0,104280.0,4.66931478]
[1748786378421,0.50388262,104290.0,104280.0,4.71931478]
[1748786378625,0.50388262,104290.0,104280.0,4.66931478]
[1748786379036,0.50388262,104290.0,104280.0,4.68499914]
[1748786379479,0.50388262,104290.0,104280.0,4.67827727]
[1748786379662,0.50388262,104290.0,104280.0,4.67603664]
[1748786379830,0.50388262,104290.0,104280.0,4.68499908]
[1748786380268,0.50388262,104290.0,104280.0,4.68500001]
[1748786380494,0.51918303,104290.0,104280.0,4.66267786]
[1748786380704,0.51918303,104290.0,104280.0,4.66940024]
[1748786380906,0.51918303,104290.0,104280.0,4.57354608]
[1748786381110,0.51918303,104290.0,104280.0,4.55786048]
[1748786381666,0.51918303,104290.0,104280.0,4.57354751]
[1748786381892,0.51918303,104290.0,104280.0,4.55786048]
[1748786382094,0.51918303,104290.0,104280.0,4.56458349]
[1748786382299,0.51918303,104290.0,104280.0,4.57354751]
[1748786382866,0.51918303,104290.0,104280.0,4.56458349]
[1748786383027,0.51918303,104290.0,104280.0,4.57354751]
[1748786383386,0.51918303,104290.0,104280.0,4.56682505]
[1748786383622,0.51918303,104290.0,104280.0,4.55786048]
[1748786384391,0.51918303,104290.0,104280.0,4.56682505]
[1748786384597,0.51918303,104290.0,104280.0,4.55786048]
[1748786384770,0.51918303,104290.0,104280.0,4.56682505]
[1748786384971,0.51918303,104290.0,104280.0,4.57354848]
[1748786385173,0.51918303,104290.0,104280.0,4.56682505]
[1748786385578,0.51918303,104290.0,104280.0,4.57578962]
[1748786385760,0.51918303,104290.0,104280.0,4.56682505]
[1748786385966,0.51918303,104290.0,104280.0,4.57578962]
[1748786386185,0.51918303,104290.0,104280.0,4.56682505]
[1748786386749,0.51918303,104290.0,104280.0,4.58251422]
[1748786386949,0.51918303,104290.0,104280.0,4.56682505]
[1748786387197,0.51918303,104290.0,104280.0,4.57354986]
[1748786387399,0.51918303,104290.0,104280.0,4.56682505]
[1748786387985,0.51918303,104290.0,104280.0,4.55142505]
[1748786388788,0.51918303,104290.0,104280.0,4.56039339]
[1748786388998,0.51918303,104290.0,104280.0,4.55142505]
[1748786389609,0.51918303,104290.0,104280.0,4.56039655]
[1748786389890,0.51918303,104290.0,104280.0,4.55142505]
[1748786390406,0.51918303,104290.0,104280.0,4.55815368]
[1748786390611,0.51918303,104290.0,104280.0,4.55815367]
[1748786390874,0.51918303,104290.0,104280.0,4.55142505]
[1748786391837,0.51918303,104290.0,104280.0,4.56040409]
[1748786392148,0.51918303,104290.0,104280.0,4.55142505]
[1748786392345,0.53488303,104290.0,104280.0,4.55815933]
[1748786392544,0.53488303,104290.0,104280.0,4.56040408]
[1748786392767,0.53488303,104290.0,104280.0,4.55142505]
[1748786392979,0.51918303,104290.0,104280.0,4.56792505]
[1748786393177,0.51918303,104290.0,104280.0,4.57690409]
[1748786393380,0.51918303,104290.0,104280.0,4.55142505]
[1748786393998,0.51918303,104290.0,104280.0,4.56040409]
[1748786394212,0.51918303,104290.0,104280.0,4.55142505]
[1748786394773,0.51918303,104290.0,104280.0,4.55815942]
[1748786395209,0.51918303,104290.0,104280.0,4.55142505]
[1748786395618,0.51918303,104290.0,104280.0,4.56040409]
[1748786395775,0.51918303,104290.0,104280.0,4.55142505]
[1748786396185,0.51918303,104290.0,104280.0,4.57465932]
[1748786396388,0.51918303,104290.0,104280.0,4.56792505]
[1748786396798,0.50388262,104290.0,104280.0,4.56792505]
[1748786398241,0.50388262,104290.0,104280.0,4.57465912]
[1748786398449,0.50388262,104290.0,104280.0,4.58363788]
[1748786398654,0.50388262,104290.0,104280.0,4.56792505]
[1748786398948,0.50376262,104290.0,104280.0,4.56792505]
[1748786399551,0.50376262,104290.0,104280.0,4.5836375]
[1748786400344,0.50376262,104290.0,104280.0,4.58363721]
[1748786400544,0.50376262,104290.0,104280.0,4.58363723]
[1748786400790,0.50376262,104290.0,104280.0,4.58363719]
[1748786401017,0.50376262,104290.0,104280.0,4.57690342]
[1748786401247,0.50376262,104290.0,104280.0,4.58363712]
[1748786401955,0.21104262,104290.0,104280.0,4.57690349]
[1748786402201,0.50372262,104290.0,104280.0,4.58363732]
[1748786402612,0.50372262,104290.0,104280.0,4.58363828]
[1748786402815,0.50372262,104290.0,104280.0,4.58363844]
[1748786403070,0.50372262,104290.0,104280.0,4.59913844]
[1748786403673,0.50372262,104290.0,104280.0,4.59913892]
[1748786403877,0.50372262,104290.0,104280.0,4.59913916]
[1748786404543,0.50372262,104290.0,104280.0,4.59913998]
[1748786404746,0.50372262,104290.0,104280.0,4.63342505]
[1748786404954,0.50372262,104290.0,104280.0,4.59240504]
[1748786405134,0.50372262,104290.0,104280.0,4.59914003]
[1748786405781,0.50372262,104290.0,104280.0,4.59914072]
[1748786405930,0.50372262,104290.0,104280.0,4.59914164]
[1748786406131,0.50372262,104290.0,104280.0,4.59016075]
[1748786406361,0.50372262,104290.0,104280.0,4.5991417]
[1748786406576,0.50372262,104290.0,104280.0,4.64016076]
[1748786406779,0.21104262,104290.0,104280.0,4.69499606]
[1748786406956,0.50372262,104290.0,104280.0,4.68601508]
[1748786407161,0.50372262,104290.0,104280.0,4.69499603]
[1748786407765,0.50372262,104290.0,104280.0,4.69499583]
[1748786408170,0.50372262,104290.0,104280.0,4.6882602]
[1748786408382,0.50372262,104290.0,104280.0,4.69499588]
[1748786408578,0.50372262,104290.0,104280.0,4.69499592]
[1748786408782,0.50372262,104290.0,104280.0,4.69499591]
[1748786409158,0.01926913,104290.0,104280.0,5.36874705]
[1748786409364,0.51327053,104290.0,104280.0,4.90596579]
[1748786409597,0.51327053,104290.0,104280.0,4.89922654]
[1748786409787,0.51327053,104290.0,104280.0,4.89024934]
[1748786409978,0.51327053,104290.0,104280.0,4.90595769]
[1748786410294,0.51327053,104290.0,104280.0,4.94636908]
[1748786410460,0.51327053,104290.0,104280.0,4.95595846]
[1748786410461,0.50368262,104290.0,104280.0,4.95595846]
[1748786410668,0.50368262,104290.0,104280.0,4.90595847]
[1748786410870,0.50368262,104290.0,104280.0,4.9010495]
[1748786411026,0.50368262,104290.0,104280.0,4.90391183]
[1748786411390,0.50368262,104290.0,104280.0,4.89493651]
[1748786411704,0.50368262,104290.0,104280.0,4.90390676]
[1748786412213,0.50368262,104290.0,104280.0,4.88820798]
[1748786412433,0.50368262,104290.0,104280.0,4.90390675]
[1748786412659,0.50368262,104290.0,104280.0,4.90390674]
[1748786413249,0.50368262,104290.0,104280.0,4.90390327]
[1748786413455,0.50368262,104290.0,104280.0,4.89431266]
[1748786413799,0.49409444,104290.0,104280.0,4.89431266]
[1748786414057,9.304e-05,104290.0,104280.0,5.74246756]
[1748786414261,9.304e-05,104290.0,104280.0,6.51296296]
[1748786414465,9.304e-05,104290.0,104280.0,6.59310115]
[1748786414684,9.304e-05,104290.0,104280.0,6.57028432]
[1748786414905,9.304e-05,104290.0,104280.0,6.57700639]
[1748786415110,9.304e-05,104290.0,104280.0,6.57400618]
[1748786415306,9.304e-05,104290.0,104280.0,6.62399745]
[1748786415518,0.01917416,104300.0,104290.0,0.62507861]
[1748786415519,0.02876124,104300.0,104290.0,0.62507861]
[1748786415735,0.02876124,104300.0,104290.0,1.20038633]
[1748786415939,0.02876124,104300.0,104290.0,1.20038532]
[1748786416355,0.02876124,104300.0,104290.0,1.2003853]
[1748786417172,0.02876124,104300.0,104290.0,1.20038138]
[1748786417681,0.02876124,104300.0,104290.0,1.20238138]
[1748786417893,0.01917407,104300.0,104290.0,1.22160242]
[1748786418360,0.01917407,104300.0,104290.0,1.27160038]
[1748786418509,0.01917407,104300.0,104290.0,1.22160038]
[1748786419187,0.01917407,104300.0,104290.0,1.17160038]
[1748786419384,0.01917407,104300.0,104290.0,1.22159927]
[1748786419636,0.19171779,104320.0,104310.0,0.0653]
[1748786419773,0.21088892,104320.0,104310.0,0.36570091]
[1748786419994,0.21088892,104320.0,104310.0,0.41618645]
[1748786420197,0.21088892,104320.0,104310.0,0.42288791]
[1748786420421,0.21088892,104320.0,104310.0,0.34376499]
[1748786420623,0.21088892,104320.0,104310.0,0.39376479]
[1748786420797,0.19371779,104320.0,104310.0,0.33907302]
[1748786421023,0.19371779,104320.0,104310.0,0.33237176]
[1748786421230,0.19171779,104320.0,104310.0,0.14063559]
[1748786421429,0.19171779,104320.0,104310.0,0.14733691]
[1748786421592,0.19171779,104320.0,104310.0,0.19266894]
[1748786421794,0.19171779,104320.0,104310.0,0.39107312]
[1748786422044,0.19171779,104320.0,104310.0,0.19933692]
[1748786422198,0.19171779,104320.0,104310.0,0.14933569]
[1748786422655,0.19171779,104320.0,104310.0,0.14933568]
[1748786422958,0.19171779,104320.0,104310.0,0.14933566]
[1748786423159,0.19171779,104320.0,104310.0,0.15033566]
[1748786423475,0.19171779,104320.0,104310.0,0.14544127]
[1748786423695,0.19171779,104320.0,104310.0,0.14544129]
[1748786423895,0.19171779,104320.0,104310.0,0.14544052]
[1748786424290,0.19171779,104320.0,104310.0,0.1387411]
[1748786424525,0.19171779,104320.0,104310.0,0.1291543]
[1748786424677,0.19171779,104320.0,104310.0,0.13585374]
[1748786424882,0.19171779,104320.0,104310.0,0.1291543]
[1748786426764,0.19171779,104320.0,104310.0,0.1141543]
[1748786427348,0.19171779,104320.0,104310.0,0.12085377]
[1748786427571,0.19171779,104320.0,104310.0,0.1141543]
[1748786429489,0.19171779,104320.0,104310.0,0.1641543]
[1748786429733,0.19171779,104320.0,104310.0,0.1141543]
[1748786429935,0.19171779,104320.0,104310.0,0.11655066]
[1748786430173,0.19171779,104320.0,104310.0,0.18845012]
[1748786430371,0.19171779,104320.0,104310.0,0.13175066]
[1748786431024,0.19171779,104320.0,104310.0,0.11655066]
[1748786431460,0.19171779,104320.0,104310.0,0.1141543]
[1748786431812,0.19171779,104320.0,104310.0,0.1641543]
[1748786432062,0.19171779,104320.0,104310.0,0.12085385]
[1748786432260,0.19171779,104320.0,104310.0,0.17085385]
[1748786432460,0.19171779,104320.0,104310.0,0.1275534]
[1748786432663,0.19171779,104320.0,104310.0,0.12755343]
[1748786432885,0.19171779,104320.0,104310.0,0.12085385]
[1748786433009,0.19171779,104320.0,104310.0,0.12755344]
[1748786433233,0.19171779,104320.0,104310.0,0.1275541]
[1748786433431,0.19171779,104320.0,104310.0,0.12085385]
[1748786433917,0.19171779,104320.0,104310.0,0.12755414]
[1748786434121,0.19171779,104320.0,104310.0,0.12085385]
[1748786434372,0.19171779,104320.0,104310.0,0.12755413]
[1748786434586,0.19171779,104320.0,104310.0,0.18425441]
[1748786434789,0.19171779,104320.0,104310.0,0.17755413]
[1748786434988,0.19171779,104320.0,104310.0,0.12755413]
[1748786435200,0.19171779,104320.0,104310.0,0.13425441]
[1748786435611,0.19171779,104320.0,104310.0,0.14095584]
[1748786436187,0.19171779,104320.0,104310.0,0.14095583]
[1748786436590,0.19171779,104320.0,104310.0,0.14335219]
[1748786436768,0.19171779,104320.0,104310.0,0.14335232]
[1748786437791,0.19171779,104320.0,104310.0,0.19824376]
[1748786437997,0.19171779,104320.0,104310.0,0.14584988]
[1748786438244,0.19171779,104320.0,104310.0,0.14824625]
[1748786438819,0.19171779,104320.0,104310.0,0.14824658]
[1748786439057,0.19171779,104320.0,104310.0,0.19824658]
[1748786439264,0.19171779,104320.0,104310.0,0.19585021]
[1748786439466,0.19171779,104320.0,104310.0,0.14585395]
[1748786439664,0.19171779,104320.0,104310.0,0.19585395]
[1748786439797,0.19171779,104320.0,104310.0,0.14585396]
[1748786440211,0.19171779,104320.0,104310.0,0.18914585]
[1748786440438,0.19171779,104320.0,104310.0,0.14585434]
[1748786441168,0.19171779,104320.0,104310.0,0.34717731]
[1748786442018,0.19171779,104320.0,104310.0,0.3471803]
[1748786442238,0.19171779,104320.0,104310.0,0.39718027]
[1748786442455,0.20689941,104330.0,104320.0,0.24171779]
[1748786442667,0.49929941,104330.0,104320.0,0.15256496]
[1748786442849,0.19169941,104330.0,104320.0,0.14825049]
[1748786443074,0.19169941,104330.0,104320.0,0.09825049]
[1748786443436,0.19169941,104330.0,104320.0,0.14825049]
[1748786443631,0.19169941,104330.0,104320.0,0.09825049]
[1748786443844,0.19169941,104330.0,104320.0,0.10314193]
[1748786444102,0.19169941,104330.0,104320.0,0.1598633]
[1748786444326,0.19169941,104330.0,104320.0,0.1098633]
[1748786444715,0.20729941,104330.0,104320.0,0.15746711]
[1748786444933,0.20729941,104330.0,104320.0,0.10746711]
[1748786445132,0.49965941,104330.0,104320.0,0.10746711]
[1748786445338,0.20729941,104330.0,104320.0,0.10746711]
[1748786445762,0.20729941,104330.0,104320.0,0.10746676]
[1748786446033,0.20729941,104330.0,104320.0,0.10746668]
[1748786446237,0.20729941,104330.0,104320.0,0.1074667]
[1748786446424,0.20729941,104330.0,104320.0,0.10746674]
[1748786446549,0.20729941,104330.0,104320.0,0.10074574]
[1748786446968,0.20729941,104330.0,104320.0,0.10746674]
[1748786447181,0.20729941,104330.0,104320.0,0.1574672]
[1748786447394,0.20729941,104330.0,104320.0,0.10746662]
[1748786448037,0.20729941,104330.0,104320.0,0.15746662]
[1748786448298,0.20729941,104330.0,104320.0,0.10746732]
[1748786449010,0.20729941,104330.0,104320.0,0.15074574]
[1748786449213,0.20729941,104330.0,104320.0,0.10746804]
[1748786449649,0.20729941,104330.0,104320.0,0.10246804]
[1748786449859,0.20729941,104330.0,104320.0,0.10246776]
[1748786450074,0.20729941,104330.0,104320.0,0.10246796]
[1748786450284,0.20729941,104330.0,104320.0,0.15246796]